bitfinex-derivatives/quotes_BNBF0:USTF0_20250510
["timestamp","ask_amount","ask_price","bid_price","bid_amount"]
[1746871354559,0.30312215,659.8,658.71,0.91204112]
[1746871354762,0.30312215,659.8,658.72,0.91204112]
[1746871354961,0.30312215,659.8,658.73,0.91204112]
[1746871355158,0.30312215,659.8,658.74,0.91204112]
[1746871355357,0.30312215,659.8,658.75,0.91204112]
[1746871355560,0.30312215,659.8,658.14,0.95561003]
[1746871355561,0.30312215,659.8,658.76,0.91204112]
[1746871355761,0.30312215,659.8,658.77,0.91183258]
[1746871355961,0.30312215,659.8,658.78,0.91183258]
[1746871356156,0.26382024,659.79,658.79,0.91183258]
[1746871356362,0.30313594,659.77,658.8,0.91183258]
[1746871356561,0.30313594,659.77,658.81,0.91183258]
[1746871356760,0.30313594,659.77,658.82,0.91183258]
[1746871356960,0.30313594,659.77,658.83,0.91183258]
[1746871357265,0.30313594,659.77,658.7,0.26382024]
[1746871357464,0.30313594,659.77,658.71,0.91233238]
[1746871357664,0.30313594,659.77,658.72,0.91233238]
[1746871357964,0.30313594,659.77,658.73,0.91233238]
[1746871358164,0.30313594,659.77,658.74,0.91233238]
[1746871358363,0.30313594,659.77,658.75,0.91233238]
[1746871358565,0.30313594,659.77,658.76,0.91233238]
[1746871358759,0.30313594,659.77,658.77,0.91233238]
[1746871358963,0.30313594,659.77,658.78,0.91233238]
[1746871359165,0.30313594,659.77,658.79,0.91233238]
[1746871359361,0.30313594,659.77,658.8,0.91207513]
[1746871359559,0.30313594,659.77,658.81,0.91207513]
[1746871359764,0.30313594,659.77,658.82,0.91207513]
[1746871359961,0.30313594,659.77,658.83,0.91207513]
[1746871360264,0.30313594,659.77,658.84,0.91207513]
[1746871360564,0.30313594,659.77,658.85,0.91207513]
[1746871360764,0.30313594,659.77,658.86,0.91207513]
[1746871360960,0.30313594,659.77,658.87,0.91207513]
[1746871361166,0.30313594,659.77,658.88,0.91207513]
[1746871361463,0.30313594,659.77,658.89,0.91207513]
[1746871361666,0.30313594,659.77,658.9,0.91207513]
[1746871361867,0.30313594,659.77,658.91,0.91207513]
[1746871362066,0.30313594,659.77,658.92,0.91207513]
[1746871362266,0.30313594,659.77,658.93,0.91207513]
[1746871362463,0.30313594,659.77,658.94,0.91207513]
[1746871362669,0.30313594,659.77,658.95,0.91207513]
[1746871362868,0.30313594,659.77,658.96,0.91152708]
[1746871363167,0.30313594,659.77,658.97,0.91152708]
[1746871363367,0.30313594,659.77,658.98,0.91152708]
[1746871363569,0.30313594,659.77,658.99,0.91152708]
[1746871363772,0.30313594,659.77,658.76,0.26386125]
[1746871363966,0.30313594,659.77,658.77,0.91155368]
[1746871364169,0.30313594,659.77,658.78,0.91155368]
[1746871364370,0.30313594,659.77,658.79,0.91155368]
[1746871364568,0.30313594,659.77,658.8,0.91155368]
[1746871364766,0.30313594,659.77,658.81,0.91155368]
[1746871364965,0.30313594,659.77,658.82,0.91155368]
[1746871365169,0.30313594,659.77,658.83,0.91155368]
[1746871365370,0.30313594,659.77,658.84,0.91155368]
[1746871365570,0.30313594,659.77,658.85,0.91155368]
[1746871365870,0.30313594,659.77,658.86,0.91155368]
[1746871366071,0.30313594,659.77,658.87,0.91155368]
[1746871366366,0.30313594,659.77,658.88,0.91123467]
[1746871366672,0.30313594,659.77,658.89,0.91123467]
[1746871366892,0.30313594,659.77,658.9,0.91123467]
[1746871367065,0.30313594,659.77,658.76,0.26386125]
[1746871367066,0.30313594,659.77,658.91,0.91123467]
[1746871367271,0.30313594,659.77,658.92,0.91123467]
[1746871367469,0.30313594,659.77,658.93,0.91123467]
[1746871367668,0.30313594,659.77,658.94,0.91123467]
[1746871367872,0.30313594,659.77,658.95,0.91123467]
[1746871368072,0.30313594,659.77,658.96,0.91123467]
[1746871368274,0.30313594,659.77,658.97,0.91129368]
[1746871368467,0.30313594,659.77,658.98,0.91129368]
[1746871368668,0.30313594,659.77,658.99,0.91129368]
[1746871368873,0.30313594,659.77,659.0,0.91129368]
[1746871369073,0.30313594,659.77,658.76,0.26386125]
[1746871369268,0.30313594,659.77,658.77,0.91112031]
[1746871369472,0.30313594,659.77,658.78,0.91112031]
[1746871369774,0.30313594,659.77,658.79,0.91112031]
[1746871369970,0.30313594,659.77,658.8,0.91101019]
[1746871370171,0.30313594,659.77,658.81,0.91101019]
[1746871370471,0.30313594,659.77,658.82,0.91101019]
[1746871370669,0.30313594,659.77,658.83,0.91101019]
[1746871370869,0.30313594,659.77,658.84,0.91101019]
[1746871371174,0.30313594,659.77,658.85,0.91101019]
[1746871371375,0.30313594,659.77,658.86,0.91101019]
[1746871371676,0.30313594,659.77,658.87,0.91101019]
[1746871371875,0.30313594,659.77,658.88,0.91101019]
[1746871372069,0.30313594,659.77,658.89,0.91101019]
[1746871372268,0.30313594,659.77,658.9,0.91101019]
[1746871372572,0.30313594,659.77,658.91,0.91101019]
[1746871372770,0.30313594,659.77,658.92,0.91101019]
[1746871372968,0.30313594,659.77,658.93,0.91101019]
[1746871373174,0.30313594,659.77,658.94,0.91101019]
[1746871373373,0.30313594,659.77,658.95,0.91101019]
[1746871373674,0.30313594,659.77,658.96,0.91101019]
[1746871373870,0.30313594,659.77,658.97,0.91101019]
[1746871374075,0.30313594,659.77,658.98,0.91101019]
[1746871374270,0.30313594,659.77,658.99,0.91101019]
[1746871374469,0.30313594,659.77,658.79,0.26382924]
[1746871374673,0.30313594,659.77,658.8,0.91044787]
[1746871374871,0.30313594,659.77,658.81,1.18908928]
[1746871375070,0.30313594,659.77,658.82,0.91044787]
[1746871375270,0.30313594,659.77,658.83,0.91047537]
[1746871375573,0.30313594,659.77,658.84,0.91047537]
[1746871375769,0.30313594,659.77,658.85,0.91047537]
[1746871375975,0.30313594,659.77,658.86,0.91047537]
[1746871376172,0.30313594,659.77,658.87,0.91047537]
[1746871376376,0.30313594,659.77,658.88,0.91047537]
[1746871376574,0.30313594,659.77,658.89,0.91047537]
[1746871376776,0.30313594,659.77,658.9,0.91047537]
[1746871376975,0.30313594,659.77,658.91,0.91021227]
[1746871377176,0.30313594,659.77,658.92,0.91021227]
[1746871377374,0.30313594,659.77,658.93,0.91021227]
[1746871377679,0.30313594,659.77,658.94,0.91021227]
[1746871377978,0.30313594,659.77,658.95,0.91021227]
[1746871378172,0.30313594,659.77,658.96,0.91021227]
[1746871378372,0.30313594,659.77,658.97,0.91021227]
[1746871378576,0.30313594,659.77,658.98,0.91021227]
[1746871378879,0.30313594,659.77,658.99,0.91021227]
[1746871379081,0.30313594,659.77,659.0,0.91021227]
[1746871379282,0.30313594,659.77,659.01,0.91021227]
[1746871379480,0.30313594,659.77,658.87,0.26381524]
[1746871379677,0.30313594,659.77,658.88,0.91001632]
[1746871379877,0.30313594,659.77,658.89,0.91001632]
[1746871380074,0.30313594,659.77,658.87,0.26381524]
[1746871380075,0.30313594,659.77,658.9,0.91001632]
[1746871380279,0.30313594,659.77,658.91,1.18863521]
[1746871380477,0.30313594,659.77,658.92,0.91001632]
[1746871380678,0.30313594,659.77,658.93,0.90998386]
[1746871380981,0.30313594,659.77,658.94,0.90998386]
[1746871381181,0.30313594,659.77,658.95,0.90998386]
[1746871381382,0.30313594,659.77,658.96,0.90998386]
[1746871381579,0.30313594,659.77,658.97,0.90998386]
[1746871381777,0.30313594,659.77,658.98,0.90998386]
[1746871381980,0.30313594,659.77,658.99,0.90998386]
[1746871382283,0.30313594,659.77,658.91,0.26381024]
[1746871382582,0.30313594,659.77,658.92,0.91006248]
[1746871382778,0.30313594,659.77,658.93,0.91006248]
[1746871382976,0.30313594,659.77,658.94,0.91006248]
[1746871383181,0.30313594,659.77,658.95,0.91006934]
[1746871383382,0.30313594,659.77,658.91,0.26381024]
[1746871383579,0.30313594,659.77,658.92,0.91015493]
[1746871383782,0.30313594,659.77,658.93,0.91015493]
[1746871383981,0.30313594,659.77,658.91,0.26381024]
[1746871384178,0.30313594,659.77,658.92,0.91023095]
[1746871384382,0.30313594,659.77,658.91,0.26381024]
[1746871386280,0.30313594,659.77,658.25,0.95561003]
[1746871386485,0.30313594,659.77,658.26,0.91083726]
[1746871386685,0.30313594,659.77,658.77,0.2639453]
[1746871386885,0.30313594,659.77,658.78,0.91083726]
[1746871387087,0.30313594,659.77,658.79,0.91085449]
[1746871387286,0.30313594,659.77,658.8,0.91085449]
[1746871387486,0.30313594,659.77,658.81,0.91085449]
[1746871387687,0.30313594,659.77,658.82,0.91085449]
[1746871387883,0.30313594,659.77,658.83,0.91085449]
[1746871388087,0.30313594,659.77,658.84,0.91085449]
[1746871388386,0.30313594,659.77,658.85,0.91085449]
[1746871388586,0.30313594,659.77,658.86,0.91085449]
[1746871388788,0.30313594,659.77,658.87,0.91059848]
[1746871388988,0.30313594,659.77,658.88,0.91059848]
[1746871389282,0.30313594,659.77,658.89,0.91059848]
[1746871389487,0.30313594,659.77,658.81,0.26378224]
[1746871389682,0.30313594,659.77,658.82,1.18933738]
[1746871389886,0.30313594,659.77,658.83,0.91065705]
[1746871390281,0.30313594,659.77,658.84,0.91065705]
[1746871390481,0.30313594,659.77,658.85,0.91065705]
[1746871390685,0.30313594,659.77,658.86,0.91065705]
[1746871390887,0.30313594,659.77,658.87,0.91065705]
[1746871391186,0.30313594,659.77,658.88,0.91065705]
[1746871391382,0.30313594,659.77,658.83,0.26385224]
[1746871391581,0.30313594,659.77,658.84,0.9107103]
[1746871391886,0.30313594,659.77,658.85,0.9107103]
[1746871392085,0.30313594,659.77,658.86,0.9107103]
[1746871392385,0.30313594,659.77,658.87,0.9107103]
[1746871392583,0.30313594,659.77,658.88,0.9107103]
[1746871392788,0.30313594,659.77,658.89,0.9107103]
[1746871392981,0.30313594,659.77,658.9,0.9107103]
[1746871393185,0.30313594,659.77,658.91,0.9107103]
[1746871393382,0.30313594,659.77,658.92,0.9107103]
[1746871393582,0.30313594,659.77,658.83,0.26385224]
[1746871393785,0.30313594,659.77,658.84,0.91057756]
[1746871393985,0.30313594,659.77,658.85,0.91057756]
[1746871394186,0.30313594,659.77,658.86,0.91057756]
[1746871394383,0.30313594,659.77,658.87,0.91057756]
[1746871394583,0.30313594,659.77,658.88,0.91057756]
[1746871394784,0.30313594,659.77,658.89,0.91057756]
[1746871394983,0.30313594,659.77,658.9,0.91057756]
[1746871395285,0.30313594,659.77,658.91,0.91057756]
[1746871395581,0.30313594,659.77,658.92,0.91057756]
[1746871395781,0.30313594,659.77,658.83,0.26385224]
[1746871396084,0.30313594,659.77,658.84,0.91034525]
[1746871396285,0.30313594,659.77,658.85,0.91034525]
[1746871396483,0.30313594,659.77,658.86,0.91034525]
[1746871396686,0.30313594,659.77,658.87,0.91034525]
[1746871396885,0.30313594,659.77,658.88,0.91034525]
[1746871397100,0.30313594,659.77,658.89,0.91034525]
[1746871397282,0.30313594,659.77,658.9,0.91034525]
[1746871397482,0.30313594,659.77,658.91,0.91038882]
[1746871397686,0.30313594,659.77,658.92,0.91038882]
[1746871397987,0.30313594,659.77,658.85,0.26385124]
[1746871398289,0.30313594,659.77,658.86,0.91039255]
[1746871398485,0.30313594,659.77,658.87,0.91039255]
[1746871398685,0.30313594,659.77,658.88,0.91039255]
[1746871398888,0.30313594,659.77,658.89,0.91039255]
[1746871399087,0.30313594,659.77,658.9,0.91039255]
[1746871399387,0.30313594,659.77,658.91,0.91038465]
[1746871399589,0.30313594,659.77,658.92,0.91038465]
[1746871399784,0.30313594,659.77,658.85,0.26385124]
[1746871400088,0.30313594,659.77,658.86,0.91037915]
[1746871400288,0.30313594,659.77,658.88,0.26384624]
[1746871400487,0.30313594,659.77,658.89,0.91037915]
[1746871400989,0.30313594,659.77,658.9,0.91038518]
[1746871401189,0.30313594,659.77,658.91,0.91038518]
[1746871401490,0.30313594,659.77,658.92,0.91038518]
[1746871401689,0.30313594,659.77,658.93,0.91038518]
[1746871401890,0.30313594,659.77,658.88,0.26384624]
[1746871402090,0.30313594,659.77,658.89,0.91033929]
[1746871402290,0.30313594,659.77,658.9,0.91033929]
[1746871402587,0.30313594,659.77,658.91,0.91033929]
[1746871402888,0.30313594,659.77,658.92,0.91033929]
[1746871403090,0.30313594,659.77,658.93,0.91033929]
[1746871403387,0.30313594,659.77,658.94,0.91033929]
[1746871403591,0.30313594,659.77,658.95,0.91046927]
[1746871403892,0.30313594,659.77,658.9,0.26374026]
[1746871404090,0.30313594,659.77,658.91,0.91047518]
[1746871404291,0.30313594,659.77,658.92,0.91047518]
[1746871404591,0.30313594,659.77,658.93,0.91055402]
[1746871404791,0.30313594,659.77,658.94,0.91055402]
[1746871404994,0.30313594,659.77,658.95,0.91055402]
[1746871405193,0.30313594,659.77,658.9,0.26374026]
[1746871405392,0.30313594,659.77,658.91,0.91061567]
[1746871405590,0.30313594,659.77,658.92,0.91061567]
[1746871405794,0.30313594,659.77,658.93,0.91061567]
[1746871406094,0.30313594,659.77,658.94,0.91061567]
[1746871406291,0.30313594,659.77,658.95,0.91061567]
[1746871406591,0.30313594,659.77,658.96,0.91061567]
[1746871406790,0.30313594,659.77,658.97,0.91061567]
[1746871406991,0.30313594,659.77,658.98,0.91061567]
[1746871407191,0.30313594,659.77,658.99,0.91061567]
[1746871407394,0.30313594,659.77,659.0,0.91107299]
[1746871407594,0.30313594,659.77,659.01,0.9110267]
[1746871407792,0.30313594,659.77,658.91,0.26382724]
[1746871407994,0.30313594,659.77,658.92,0.91098953]
[1746871408193,0.30313594,659.77,658.93,0.91098953]
[1746871408392,0.30313594,659.77,658.94,0.91098953]
[1746871408592,0.30313594,659.77,658.95,0.91098953]
[1746871408893,0.30313594,659.77,658.96,0.91098953]
[1746871409092,0.30313594,659.77,658.97,0.91098953]
[1746871409299,0.30313594,659.77,658.98,0.91098953]
[1746871409597,0.30313594,659.77,658.99,0.91098953]
[1746871409798,0.30313594,659.77,659.0,0.91098953]
[1746871410000,0.30313594,659.77,659.01,0.91098953]
[1746871410198,0.30313594,659.77,659.02,0.91098953]
[1746871410498,0.30313594,659.77,658.93,0.26380624]
[1746871410699,0.30313594,659.77,658.94,0.91095387]
[1746871410896,0.30313594,659.77,658.95,0.91095387]
[1746871411093,0.30313594,659.77,658.96,0.91095387]
[1746871411393,0.30313594,659.77,658.97,0.91095387]
[1746871411592,0.30313594,659.77,658.98,0.91095387]
[1746871411797,0.30313594,659.77,658.99,0.91095387]
[1746871411998,0.30313594,659.77,659.0,0.91095387]
[1746871412194,0.30313594,659.77,659.01,0.91095387]
[1746871412493,0.30313594,659.77,659.02,0.91095387]
[1746871412694,0.30313594,659.77,659.03,0.91095387]
[1746871412998,0.30313594,659.77,658.36,0.95561003]
[1746871413193,0.30313594,659.77,658.37,0.91121754]
[1746871413398,0.30313594,659.77,658.98,0.26372027]
[1746871413599,0.30313594,659.77,658.99,0.91121754]
[1746871413799,0.30313594,659.77,659.0,0.91121754]
[1746871413999,0.30313594,659.77,659.01,0.91121754]
[1746871414197,0.30313594,659.77,659.02,0.91121754]
[1746871414394,0.30313594,659.77,659.03,0.91121754]
[1746871414697,0.30313594,659.77,658.36,0.95561003]
[1746871414698,0.30313594,659.77,659.04,0.91121754]
[1746871414894,0.30313594,659.77,658.37,0.95561003]
[1746871415098,0.30313594,659.77,658.38,0.91275236]
[1746871415298,0.30313594,659.77,658.39,0.91275236]
[1746871415499,0.30313594,659.77,658.4,0.91275236]
[1746871415700,0.30313594,659.77,658.41,0.91275236]
[1746871415902,0.30313594,659.77,658.42,0.91275236]
[1746871416103,0.30313594,659.77,658.43,0.91275236]
[1746871416301,0.30313594,659.77,658.44,0.91275236]
[1746871416496,0.30313594,659.77,658.45,0.91275236]
[1746871416701,0.30313594,659.77,658.46,0.91275236]
[1746871416899,0.30313594,659.77,658.47,0.91275236]
[1746871417097,0.30313594,659.77,658.48,1.19139506]
[1746871417303,0.30313594,659.77,658.49,0.91275236]
[1746871417505,0.30313594,659.77,658.49,0.2786427]
[1746871417806,0.30313594,659.77,658.5,0.91298624]
[1746871418005,0.30313594,659.77,658.51,1.19162894]
[1746871418203,0.30313594,659.77,658.52,0.91298624]
[1746871418404,0.30313594,659.77,658.53,0.91298624]
[1746871418601,0.30313594,659.77,658.54,0.91298624]
[1746871418801,0.30313594,659.77,658.55,0.91298624]
[1746871419005,0.30313594,659.77,658.56,1.19162894]
[1746871419206,0.30313594,659.77,658.57,0.91298624]
[1746871419406,0.30313594,659.77,658.58,0.91298624]
[1746871419607,0.30313594,659.77,658.59,0.91298624]
[1746871419805,0.30313594,659.77,658.6,0.91298624]
[1746871420005,0.30313594,659.77,658.61,0.91298624]
[1746871420203,0.30313594,659.77,658.62,0.91298624]
[1746871420504,0.30313594,659.77,658.63,0.91328478]
[1746871420704,0.30313594,659.77,658.64,0.91328478]
[1746871421002,0.30313594,659.77,658.65,0.91328478]
[1746871421202,0.30313594,659.77,658.66,0.91328478]
[1746871421403,0.30313594,659.77,658.67,0.91328478]
[1746871421607,0.30313594,659.77,658.68,0.91328478]
[1746871421804,0.30313594,659.77,658.69,0.91328478]
[1746871422001,0.30313594,659.77,658.7,0.91328478]
[1746871422205,0.30313594,659.77,658.71,1.19193219]
[1746871422405,0.30313594,659.77,658.72,0.91328478]
[1746871422606,0.30313594,659.77,658.73,0.91328478]
[1746871422803,0.30313594,659.77,658.74,1.19193219]
[1746871423007,0.30313594,659.77,658.75,0.91328478]
[1746871423207,0.30313594,659.77,658.75,1.19193219]
[1746871423408,0.30313594,659.77,658.76,0.91328478]
[1746871423608,0.30313594,659.77,658.76,1.19193219]
[1746871423807,0.30313594,659.77,658.77,0.91328478]
[1746871424010,0.30313594,659.77,658.78,0.91350081]
[1746871424205,0.30313594,659.77,658.79,0.91350081]
[1746871424505,0.30313594,659.77,658.8,0.91350081]
[1746871424704,0.30313594,659.77,658.8,1.19214822]
[1746871424907,0.30313594,659.77,658.81,1.19214822]
[1746871425207,0.30313594,659.77,658.82,0.91350081]
[1746871425509,0.30313594,659.77,658.83,0.91350081]
[1746871425809,0.30313594,659.77,658.84,0.27864741]
[1746871426008,0.30313594,659.77,658.85,0.91350081]
[1746871426211,0.30313594,659.77,658.86,0.91350081]
[1746871426404,0.30313594,659.77,658.87,0.91350081]
[1746871426610,0.30313594,659.77,658.88,0.91350081]
[1746871426812,0.30313594,659.77,658.89,0.91350081]
[1746871427010,0.30313594,659.77,658.9,0.91350081]
[1746871427310,0.30313594,659.77,658.91,0.91350081]
[1746871427514,0.30313594,659.77,658.92,0.91350081]
[1746871427713,0.30313594,659.77,658.93,0.91350081]
[1746871427906,0.30313594,659.77,658.94,0.91350081]
[1746871428212,0.30313594,659.77,658.95,0.91350081]
[1746871428411,0.30313594,659.77,658.96,0.91350081]
[1746871428611,0.30313594,659.77,658.97,0.91350081]
[1746871428910,0.30313594,659.77,658.98,0.91350081]
[1746871429110,0.30313594,659.77,658.99,0.91350081]
[1746871429410,0.30313594,659.77,659.0,0.91350081]
[1746871429609,0.30313594,659.77,659.01,0.91350081]
[1746871429810,0.30313594,659.77,659.02,0.91350081]
[1746871430013,0.30313594,659.77,659.03,0.91350081]
[1746871430209,0.30313594,659.77,659.04,0.91350081]
[1746871430413,0.30313594,659.77,659.05,0.91350081]
[1746871430614,0.30313594,659.77,659.06,0.91350081]
[1746871430814,0.30313594,659.77,659.07,0.91350081]
[1746871431011,0.30313594,659.77,658.81,0.26382824]
[1746871431217,0.30313594,659.77,658.82,0.91364629]
[1746871431415,0.30313594,659.77,658.83,0.91364629]
[1746871431615,0.30313594,659.77,658.84,0.91364629]
[1746871431814,0.30313594,659.77,658.85,0.91364629]
[1746871432115,0.30313594,659.77,658.86,0.91364629]
[1746871432313,0.30313594,659.77,658.87,0.91364629]
[1746871432513,0.30313594,659.77,658.88,0.91364629]
[1746871432716,0.30313594,659.77,658.89,0.91364629]
[1746871432916,0.30313594,659.77,658.9,0.91364629]
[1746871433116,0.30313594,659.77,658.91,0.91364629]
[1746871433416,0.30313594,659.77,658.92,0.91364629]
[1746871433613,0.30313594,659.77,658.93,0.91364629]
[1746871433816,0.30313594,659.77,658.94,0.91364629]
[1746871434017,0.30313594,659.77,658.95,0.91364629]
[1746871434211,0.30313594,659.77,658.96,0.91364629]
[1746871434414,0.30313594,659.77,658.97,0.91364629]
[1746871434613,0.30313594,659.77,658.98,0.91448656]
[1746871434913,0.30313594,659.77,658.99,0.91448656]
[1746871435216,0.30313594,659.77,659.0,0.91448656]
[1746871435412,0.30313594,659.77,659.01,0.91448656]
[1746871435719,0.30313594,659.77,659.02,0.91448656]
[1746871436014,0.30313594,659.77,659.03,0.91448656]
[1746871436218,0.30313594,659.77,659.04,0.91448656]
[1746871436418,0.30313594,659.77,658.9,0.26382724]
[1746871436419,0.30313594,659.77,659.05,0.91448656]
[1746871436613,0.30313594,659.77,659.06,0.91448656]
[1746871436817,0.30313594,659.77,658.9,0.26382724]
[1746871437018,0.30313594,659.77,658.91,0.91465245]
[1746871437216,0.30313594,659.77,658.92,0.91465245]
[1746871437416,0.30313594,659.77,658.93,0.91465245]
[1746871437614,0.30313594,659.77,658.94,0.91465245]
[1746871437817,0.30313594,659.77,658.95,0.91465245]
[1746871438017,0.30313594,659.77,658.96,0.91465245]
[1746871438316,0.30313594,659.77,658.97,0.91465245]
[1746871438520,0.30313594,659.77,658.98,0.91465245]
[1746871438821,0.30313594,659.77,658.99,0.91465245]
[1746871439014,0.30313594,659.77,659.0,0.91465245]
[1746871439319,0.30313594,659.77,659.01,0.91465245]
[1746871439513,0.30313594,659.77,659.02,0.91465245]
[1746871439719,0.30313594,659.77,659.03,0.91465245]
[1746871439917,0.30313594,659.77,659.04,0.91465245]
[1746871440219,0.30313594,659.77,659.05,0.91465245]
[1746871440413,0.30313594,659.77,659.06,0.91465245]
[1746871440617,0.30313594,659.77,658.93,0.26383124]
[1746871440816,0.30313594,659.77,658.94,0.91395673]
[1746871441017,0.30313594,659.77,658.95,0.91395673]
[1746871441217,0.30313594,659.77,658.96,1.19260791]
[1746871441514,0.30313594,659.77,658.97,0.91395673]
[1746871441716,0.30313594,659.77,658.98,0.91395673]
[1746871441915,0.30313594,659.77,658.99,0.91395673]
[1746871442117,0.30313594,659.77,659.0,0.91395673]
[1746871442314,0.30313594,659.77,659.01,0.91395673]
[1746871442614,0.30313594,659.77,659.02,0.91395673]
[1746871442816,0.30313594,659.77,659.03,0.91393949]
[1746871443016,0.30313594,659.77,659.04,0.91393949]
[1746871443215,0.30313594,659.77,659.05,0.91393949]
[1746871443414,0.30313594,659.77,659.06,0.91393949]
[1746871443613,0.30313594,659.77,659.07,0.91393949]
[1746871443813,0.30313594,659.77,659.08,0.91393949]
[1746871444214,0.30313594,659.77,658.94,0.26379524]
[1746871444414,0.30313594,659.77,658.95,0.91405203]
[1746871444621,0.30313594,659.77,658.96,0.91421472]
[1746871444818,0.30313594,659.77,658.63,0.95561003]
[1746871444819,0.30313594,659.77,658.97,0.91421472]
[1746871445118,0.30313594,659.77,658.98,0.91421472]
[1746871445319,0.30313594,659.77,658.99,0.91421472]
[1746871445515,0.30313594,659.77,659.0,0.91421472]
[1746871445719,0.30313594,659.77,659.01,0.91421472]
[1746871445918,0.30313594,659.77,659.02,0.91421472]
[1746871446121,0.30313594,659.77,659.03,0.91421472]
[1746871446417,0.30313594,659.77,659.04,0.91421472]
[1746871446614,0.30313594,659.77,659.05,0.91421472]
[1746871446815,0.30313594,659.77,659.06,0.91421472]
[1746871447017,0.30313594,659.77,659.07,0.91421472]
[1746871447215,0.30313594,659.77,658.96,0.26379024]
[1746871447415,0.30313594,659.77,658.97,0.91361438]
[1746871447618,0.30313594,659.77,658.98,0.91361438]
[1746871447819,0.30313594,659.77,658.99,0.91361438]
[1746871448015,0.30313594,659.77,658.54,0.95561003]
[1746871448222,0.30313594,659.77,658.97,0.26382224]
[1746871448421,0.30313594,659.77,658.98,0.91338232]
[1746871448721,0.30313594,659.77,658.99,0.91338232]
[1746871448915,0.30313594,659.77,659.0,0.91338232]
[1746871449119,0.30313594,659.77,659.01,0.91338232]
[1746871449319,0.30313594,659.77,659.02,0.91338232]
[1746871449518,0.30313594,659.77,659.03,0.91338232]
[1746871449715,0.30313594,659.77,659.04,0.91338232]
[1746871449920,0.30313594,659.77,659.05,0.91338232]
[1746871450222,0.30313594,659.77,659.06,0.91338232]
[1746871450421,0.30313594,659.77,659.07,0.91338232]
[1746871450622,0.30313594,659.77,659.08,0.91338232]
[1746871450825,0.30313594,659.77,659.09,0.91338232]
[1746871451023,0.30313594,659.77,659.1,0.91338232]
[1746871451219,0.30313594,659.77,658.99,0.26376125]
[1746871451426,0.30313594,659.77,659.0,0.91376777]
[1746871451622,0.30313594,659.77,659.01,0.91376777]
[1746871451921,0.30313594,659.77,659.02,0.91376777]
[1746871452225,0.30313594,659.77,659.03,0.91376777]
[1746871452524,0.30313594,659.77,659.04,0.91376777]
[1746871452724,0.30313594,659.77,658.99,0.26376125]
[1746871452725,0.30313594,659.77,659.05,0.91376777]
[1746871453021,0.30313594,659.77,659.06,0.91376777]
[1746871453221,0.30313594,659.77,659.07,0.91376777]
[1746871453422,0.30313594,659.77,659.08,0.91376777]
[1746871453724,0.30313594,659.77,658.99,0.26376125]
[1746871453921,0.30313594,659.77,659.0,0.91419558]
[1746871454123,0.30313594,659.77,659.01,0.91419558]
[1746871454419,0.30313594,659.77,659.02,0.91419558]
[1746871454625,0.30313594,659.77,659.03,0.91419558]
[1746871454821,0.30313594,659.77,659.04,0.91419558]
[1746871455125,0.30313594,659.77,659.05,0.91419558]
[1746871455327,0.30313594,659.77,659.06,0.91425326]
[1746871455522,0.30313594,659.77,659.07,0.91425326]
[1746871455725,0.30313594,659.77,659.08,0.91425326]
[1746871455924,0.30313594,659.77,659.09,0.91425326]
[1746871456126,0.30313594,659.77,658.99,0.26386625]
[1746871456423,0.30313594,659.77,659.0,0.914286]
[1746871456626,0.30313594,659.77,659.01,0.914286]
[1746871456827,0.30313594,659.77,659.02,0.914286]
[1746871457026,0.30313594,659.77,659.03,0.914286]
[1746871457227,0.30313594,659.77,659.04,0.914286]
[1746871457426,0.30313594,659.77,659.05,0.914286]
[1746871457626,0.30313594,659.77,659.06,0.914286]
[1746871457827,0.30313594,659.77,659.07,0.914286]
[1746871458027,0.30313594,659.77,659.08,0.914286]
[1746871458229,0.30313594,659.77,659.09,0.914286]
[1746871458425,0.30313594,659.77,658.99,0.26382224]
[1746871458628,0.30313594,659.77,659.0,0.91442393]
[1746871458830,0.30313594,659.77,659.01,0.91442393]
[1746871459034,0.30313594,659.77,659.02,0.91443357]
[1746871459228,0.30313594,659.77,659.03,0.91443357]
[1746871459430,0.30313594,659.77,659.04,0.91443357]
[1746871459627,0.30313594,659.77,659.05,0.91443357]
[1746871459831,0.30313594,659.77,659.06,0.91443357]
[1746871460031,0.30313594,659.77,659.07,0.91443357]
[1746871460230,0.30313594,659.77,659.08,0.91443357]
[1746871460435,0.30313594,659.77,659.09,0.91443357]
[1746871460632,0.30313594,659.77,659.1,0.91443357]
[1746871460832,0.30313594,659.77,658.99,0.26381824]
[1746871461035,0.30313594,659.77,659.0,0.91464962]
[1746871461231,0.30313594,659.77,659.01,0.91464962]
[1746871461432,0.30313594,659.77,659.02,0.91464962]
[1746871461630,0.30313594,659.77,659.03,0.91464962]
[1746871461832,0.30313594,659.77,659.04,0.91464962]
[1746871462031,0.30313594,659.77,659.05,0.91464962]
[1746871462233,0.30313594,659.77,659.06,0.91464962]
[1746871462532,0.30313594,659.77,659.07,0.91482007]
[1746871462732,0.30313594,659.77,659.08,0.91482007]
[1746871462937,0.30313594,659.77,659.09,0.91482007]
[1746871463136,0.30313594,659.77,659.1,0.91482007]
[1746871463338,0.30313594,659.77,658.99,0.26381824]
[1746871463637,0.30313594,659.77,659.0,0.9148542]
[1746871463837,0.30313594,659.77,659.01,0.9148542]
[1746871464037,0.30313594,659.77,659.02,0.9148542]